Workbook

Sheet Resultados
A2: Terreno | F2: Você só pode alterar as células azuis. | P2: F = | Q2: =-AA30/Y30 -> 0.6952030663 | R2: (círculo abaixo, sem grampos)
A3: Pé da contenção | C3: Topo da conteção | P3: Fr = | Q3: =-AA37/Y37 -> 0.6952030663 | R3: (reforçado com grampos) | AG3: =+$D$4 -> 15 | AH3: =+$S31 -> 0 | AI3: =+$D$4 -> 15 | AJ3: =+$S32 -> 0 | AK3: =+$D$4 -> 15 | AL3: =+$S33 -> 0 | AM3: =+$D$4 -> 15 | AN3: =+$S34 -> 0 | AO3: =+$D$4 -> 15 | AP3: =+$S35 -> 0 | AQ3: =+$D$4 -> 15 | AR3: =+$S36 -> 0
A4: Xp = | B4: 15 | C4: Xt = | D4: 15 | AG4: =AG3-$V31*COS($D$16) -> 15 | AH4: =AH3-$V31*SIN($D$16) -> 0 | AI4: =AI3-$V32*COS($D$16) -> 15 | AJ4: =AJ3-$V32*SIN($D$16) -> 0 | AK4: =AK3-$V33*COS($D$16) -> 15 | AL4: =AL3-$V33*SIN($D$16) -> 0 | AM4: =AM3-$V34*COS($D$16) -> 15 | AN4: =AN3-$V34*SIN($D$16) -> 0 | AO4: =AO3-$V35*COS($D$16) -> 15 | AP4: =AP3-$V35*SIN($D$16) -> 0 | AQ4: =AQ3-$V36*COS($D$16) -> 15 | AR4: =AR3-$V36*SIN($D$16) -> 0
A5: Yp = | B5: 0 | C5: Yt = | D5: 8
A7: Solo | AG7: 5 | AH7: =+D5 -> 8
A8: g = | B8: 18 | C8: kN/m3 | AG8: =+D4 -> 15 | AH8: =+D5 -> 8
A9: c = | B9: 15 | C9: kPa | AG9: =+B4 -> 15 | AH9: =+B5 -> 0
A10: f = | B10: 28 | C10: graus | AG10: 25 | AH10: 0
A11: tanf = | B11: =TAN(PI()*B10/180) -> 0.5317094317
A13: Círc. crít. F= | B13: =Q2 -> 0.6952030663 | H13: Círc. de F= | I13: =BP77 -> 1.49876704
A14: Centro | H14: Centro
A15: Xc = | B15: =+$B$44 -> 26.489 | H15: Xc = | I15: 15.44 | AG15: =+Y31+Y$30 -> 3072.103644 | AH15: =SUM(Y$30:Y31) -> 3072.103644 | AJ15: =+AA31+AA$30 -> -2135.735873 | AK15: =SUM(AA$30:AA31) -> -2135.735873 | AM15: =-AJ15/AG15 -> 0.6952030663 | AN15: 0.6952030663
A16: Yc = | B16: =+$B$45 -> 8.000179937 | D16: =P31*PI()/180 -> 0 | H16: Yc = | I16: 8 | K16: =AE5*PI()/180 -> 0 | AG16: 3072.103644 | AH16: =SUM(Y$30:Y32) -> 3072.103644 | AJ16: -2135.735873 | AK16: =SUM(AA$30:AA32) -> -2135.735873 | AM16: 0.6952030663 | AN16: 0.6952030663
A17: Raio | H17: Raio | AG17: 3072.103644 | AH17: =SUM(Y$30:Y33) -> 3072.103644 | AJ17: -2135.735873 | AK17: =SUM(AA$30:AA33) -> -2135.735873 | AM17: 0.6952030663 | AN17: 0.6952030663
A18: R = | B18: =+$B$27 -> 14 | H18: R = | I18: 8.01 | AG18: 3072.103644 | AH18: =SUM(Y$30:Y34) -> 3072.103644 | AJ18: -2135.735873 | AK18: =SUM(AA$30:AA34) -> -2135.735873 | AM18: 0.6952030663 | AN18: 0.6952030663
AG19: 3072.103644 | AH19: =SUM(Y$30:Y35) -> 3072.103644 | AJ19: -2135.735873 | AK19: =SUM(AA$30:AA35) -> -2135.735873 | AM19: 0.6952030663 | AN19: 0.6952030663
A20: Para examinar um outro círculo, | H20: Para examinar um outro círculo, | AG20: 3072.103644 | AH20: =SUM(Y$30:Y36) -> 3072.103644 | AJ20: -2135.735873 | AK20: =SUM(AA$30:AA36) -> -2135.735873 | AM20: 0.6952030663 | AN20: 0.6952030663
A21: escolha abaixo: | H21: escolha abaixo:
A22: Segundo ponto de passagem obrigatória (X2,Y2), | H22: Segundo ponto de passagem obrigatória (X2,Y2),
A23: ="na superfície do terrapleno (Y2="&D5&")" -> na superfície do terrapleno (Y2=8) | H23: ="na superfície do terrapleno (Y2="&K5&")" -> na superfície do terrapleno (Y2=)
A24: X2= | B24: 12.489 | H24: X3= | I24: 5.2
A25: Y2= | B25: =+D5 -> 8 | H25: Y3= | I25: =+D5 -> 8 | AH25: Informações para a busca
A26: Raio do novo círculo | H26: Raio do novo círculo | AH26: Limites para o centro
A27: R= | B27: 14 | H27: R= | I27: 12 | P27: Consumo de grampos | R27: =+Z22 -> 0 | S27: m / m | AH27: =D4-D5 -> 7 | AI27: =D4+AJ27*D5 -> 175 | AJ27: 20
AH28: =D5 -> 8 | AI28: =D5+AJ28*D5 -> 168 | AJ28: 20
O29: Dados gerais dos grampos | S29: Dados | T29: específicos | U29: (por linha) | X29: Momento | Y29: solicitante | Z29: Momento | AA29: resistente | AH29: Passagem obrigatória | AJ29: (Xp-Xc)^2 = | AK29: =(B15-B4)^2 -> 131.997121
O30: LG = | P30: 0 | Q30: m | S30: Y | T30: Linha | V30: LG final | W30: LG específico | X30: Ms = | Y30: =+$F$101 -> 3072.103644 | Z30: Mr = | AA30: =-$F$101*$AR$77 -> -2135.735873 | AH30: pelo pé da contenção | AJ30: (Yp-Yc)^2 = | AK30: =(B16-B5)^2 -> 64.00287903
O31: Inclinação | P31: 0 | Q31: graus | S31: 0 | T31: 1 | U31: Linha 1 | V31: =IF(NOT(ISBLANK(W31)),W31,$P$30) -> 0 | X31: DMs1 = | Y31: =+'Linha 1'!L$12 -> 0 | Z31: DMr1 = | AA31: =+'Linha 1'!L$20 -> 0 | AH31: R^2 = | AI31: =B18^2 -> 196 | AJ31: Soma = | AK31: =AK30+AK29 -> 196
O32: T0/TMAX = | P32: 0.6 | S32: =S31-$P$37 -> 0 | T32: 2 | U32: Linha 2 | V32: 0 | X32: DMs2 = | Y32: =+'Linha 2'!L$12 -> 0 | Z32: DMr2 = | AA32: =+'Linha 2'!L$20 -> 0
O33: fG = | P33: 30 | Q33: kN/m/grampo | S33: =S32-$P$37 -> 0 | T33: 3 | U33: Linha 3 | V33: 0 | X33: DMs3 = | Y33: =+'Linha 3'!L$12 -> 0 | Z33: DMr3 = | AA33: =+'Linha 3'!L$20 -> 0
O34: fGm = | P34: =IF(P36<>0,P33/P36/P35,0) -> 0 | Q34: kN/m/m | S34: =S33-$P$37 -> 0 | T34: 4 | U34: Linha 4 | V34: 0 | X34: DMs4 = | Y34: =+'Linha 4'!L$12 -> 0 | Z34: DMr4 = | AA34: =+'Linha 4'!L$20 -> 0
A35: Determinação do centro do círculo de raio conhecido, | H35: Determinação do centro do círculo de raio conhecido, | O35: FG = | P35: 1.5 | S35: =S34-$P$37 -> 0 | T35: 5 | U35: Linha 5 | V35: 0 | X35: DMs5 = | Y35: =+'Linha 5'!L$12 -> 0 | Z35: DMr5 = | AA35: =+'Linha 5'!L$20 -> 0
A36: passando | B36: =B24-$E36 -> -1.2555 | C36: =E36-$E36 -> 0 | D36: =B4-$E36 -> 1.2555 | E36: =0.5*(B4+B24) -> 13.7445 | H36: passando | I36: =I24-$L36 -> -4.9 | J36: =L36-$L36 -> 0 | K36: =B4-$L36 -> 4.9 | L36: =0.5*(B4+I24) -> 10.1 | O36: Sh = | P36: 0 | Q36: m | S36: =S35-$P$37 -> 0 | T36: 6 | U36: Linha 6 | V36: 0 | X36: DMs6 = | Y36: =+'Linha 6'!L$12 -> 0 | Z36: DMr6 = | AA36: =+'Linha 6'!L$20 -> 0
A37: por 2 | B37: =B25-$E37 -> 4 | C37: =E37-$E37 -> 0 | D37: =B5-$E37 -> -4 | E37: =0.5*(B5+B25) -> 4 | H37: por 2 | I37: =I25-$L37 -> 4 | J37: =L37-$L37 -> 0 | K37: =B5-$L37 -> -4 | L37: =0.5*(B5+I25) -> 4 | O37: Sv = | P37: 0 | Q37: m | X37: MsG = | Y37: =SUM(Y30:Y36) -> 3072.103644 | Z37: MrG = | AA37: =SUM(AA30:AA36) -> -2135.735873
A38: pontos | B38: =B37/B36 -> -3.185981681 | C38: decliv. | D38: =D37/D36 -> -3.185981681 | H38: pontos | I38: =I37/I36 -> -0.8163265306 | J38: decliv. | K38: =K37/K36 -> -0.8163265306
A39: A | B39: =1+1/D38^2 -> 1.098517516 | H39: A | I39: =1+1/K38^2 -> 2.500625
A40: B | B40: 0 | H40: B | I40: 0
A41: C | B41: =D36^2+D37^2-B27^2 -> -178.4237198 | H41: C | I41: =K36^2+K37^2-I27^2 -> -103.99
A42: xc= | B42: =IF(C42>0,C42,D42) -> 12.7445 | C42: =(-B40+SQRT(B40^2-4*B39*B41)/2/B39) -> 12.7445 | D42: =(-B40-SQRT(B40^2-4*B39*B41)/2/B39) -> -12.7445 | H42: xc= | I42: =IF(J42>0,J42,K42) -> 6.448690068 | J42: =(-I40+SQRT(I40^2-4*I39*I41)/2/I39) -> 6.448690068 | K42: =(-I40-SQRT(I40^2-4*I39*I41)/2/I39) -> -6.448690068
A43: yc= | B43: =-1/D38*B42 -> 4.000179937 | H43: yc= | I43: =-1/K38*I42 -> 7.899645334
A44: Xc= | B44: =$B$42+$E$36 -> 26.489 | C44: calculado | H44: Xc= | I44: =$I$42+$L$36 -> 16.54869007 | J44: calculado
A45: Yc= | B45: =($B$43+$E$37) -> 8.000179937 | C45: calculado | H45: Yc= | I45: =($I$43+$L$37) -> 11.89964533 | J45: calculado
X49: Superfície dy= | Y49: =($Y$76-$Y$51)/25 -> 0.32 | Z49: Fellenius e Bishop simplificado | AP49: =IF(ISERR(AR77),AO77,AR77) -> 0.6952030663 | AV49: Superfície dy= | AW49: =($AW$76-$AW$51)/25 -> 0.32 | AX49: Fellenius e Bishop simplificado | BN49: =IF(ISERR(BP77),BM77,BP77) -> 1.49876704
X50: =+$B$15 -> 26.489 | Y50: =+$B$16 -> 8.000179937 | Z50: dx | AA50: dy | AB50: x | AC50: y | AD50: h | AE50: a | AF50: sena | AG50: cosa | AH50: dl | AI50: A | AJ50: w | AK50: w e | AL50: c dl | AM50: w sena | AN50: w cosa | AO50: w cosa tgf | AP50: ma | AQ50: c dx / ma | AR50: w tgf / ma | AV50: =+$I$15 -> 15.44 | AW50: =+$I$16 -> 8 | AX50: dx | AY50: dy | AZ50: x | BA50: y | BB50: h | BC50: a | BD50: sena | BE50: cosa | BF50: dl | BG50: A | BH50: w | BI50: w e | BJ50: c dl | BK50: w sena | BL50: w cosa | BM50: w cosa tgf | BN50: ma | BO50: c dx / ma | BP50: w tgf / ma
X51: =$B$4 -> 15 | Y51: =$B$5 -> 0 | Z51: =X51-X52 -> 0.2163336629 | AA51: =Y51-Y52 -> -0.32 | AB51: =(X51+X52)*0.5 -> 14.89183317 | AC51: =(Y51+Y52)*0.5 -> 0.16 | AD51: =Y$76-AC51 -> 7.84 | AE51: =ATAN(-AA51/Z51) -> 0.9763306841 | AF51: =SIN(AE51) -> 0.8284478925 | AG51: =COS(AE51) -> 0.5600661473 | AH51: =SQRT(Z51^2+AA51^2) -> 0.3862644867 | AI51: =AD51*Z51 -> 1.696055917 | AJ51: =AI51*$B$8 -> 30.52900651 | AK51: =AJ51*($B$15-AB51) -> 354.0499817 | AL51: =AH51*$B$9 -> 5.793967301 | AM51: =AJ51*AF51 -> 25.29169111 | AN51: =AJ51*AG51 -> 17.09826306 | AO51: =AN51*$B$11 -> 9.091307733 | AP51: =AG51+$B$11*AF51/AP$49 -> 1.193684696 | AQ51: =$B$9*Z51/AP51 -> 2.718477462 | AR51: =AJ51*$B$11/AP51 -> 13.59870052 | AV51: =$B$4 -> 15 | AW51: =$B$5 -> 0 | AX51: =AV51-AV52 -> 1.835455998 | AY51: =AW51-AW52 -> -0.32 | AZ51: =(AV51+AV52)*0.5 -> 14.082272 | BA51: =(AW51+AW52)*0.5 -> 0.16 | BB51: =AW$76-BA51 -> 7.84 | BC51: =ATAN(-AY51/AX51) -> 0.1726086971 | BD51: =SIN(BC51) -> 0.1717528626 | BE51: =COS(BC51) -> 0.9851400683 | BF51: =SQRT(AX51^2+AY51^2) -> 1.863142164 | BG51: =BB51*AX51 -> 14.38997503 | BH51: =BG51*$B$8 -> 259.0195505 | BI51: =BH51*($B$15-AZ51) -> 3213.585109 | BJ51: =BF51*$B$9 -> 27.94713245 | BK51: =BH51*BD51 -> 44.48734926 | BL51: =BH51*BE51 -> 255.1705376 | BM51: =BL51*$B$11 -> 135.6765815 | BN51: =BE51+$B$11*BD51/BN$49 -> 1.046071897 | BO51: =$B$9*AX51/BN51 -> 26.31926165 | BP51: =BH51*$B$11/BN51 -> 131.6574304
X52: =$B$15-SQRT($B$18^2-(Y52-$B$16)^2) -> 14.78366634 | Y52: =IF(Y51+Y$49<=$D$5,Y51+Y$49,$D$5) -> 0.32 | Z52: =X52-X53 -> 0.2038120378 | AA52: =Y52-Y53 -> -0.32 | AB52: =(X52+X53)*0.5 -> 14.68176032 | AC52: =(Y52+Y53)*0.5 -> 0.48 | AD52: 7.52 | AE52: =ATAN(-AA52/Z52) -> 1.003676461 | AF52: =SIN(AE52) -> 0.8434516937 | AG52: =COS(AE52) -> 0.5372050264 | AH52: =SQRT(Z52^2+AA52^2) -> 0.3793933931 | AI52: 1.532666524 | AJ52: =AI52*$B$8 -> 27.58799743 | AK52: 325.738098 | AL52: 5.690900897 | AM52: 23.26914316 | AN52: 14.82041089 | AO52: =AN52*$B$11 -> 7.880152252 | AP52: 1.182298874 | AQ52: 2.585793351 | AR52: =AJ52*$B$11/AP52 -> 12.4070138 | AV52: =$I$15-SQRT($I$18^2-(AW52-$I$16)^2) -> 13.164544 | AW52: =IF(AW51+AW$49<=$D$5,AW51+AW$49,$D$5) -> 0.32 | AX52: =AV52-AV53 -> 0.8853192231 | AY52: =AW52-AW53 -> -0.32 | AZ52: =(AV52+AV53)*0.5 -> 12.72188439 | BA52: =(AW52+AW53)*0.5 -> 0.48 | BB52: 7.52 | BC52: =ATAN(-AY52/AX52) -> 0.3468399927 | BD52: =SIN(BC52) -> 0.3399276757 | BE52: =COS(BC52) -> 0.9404515805 | BF52: =SQRT(AX52^2+AY52^2) -> 0.9413767189 | BG52: 6.657600558 | BH52: =BG52*$B$8 -> 119.83681 | BI52: 1649.807218 | BJ52: 14.12065078 | BK52: 40.7358483 | BL52: 112.7007174 | BM52: =BL52*$B$11 -> 59.9240344 | BN52: 1.061045873 | BO52: 12.51575326 | BP52: =BH52*$B$11/BN52 -> 60.05241033
X53: 14.5798543 | Y53: 0.64 | Z53: 0.1919231149 | AA53: -0.32 | AB53: 14.48389274 | AC53: 0.8 | AD53: 7.2 | AE53: 1.030553511 | AF53: 0.8575838159 | AG53: 0.5143442414 | AH53: 0.3731413701 | AI53: 1.381846428 | AJ53: 24.8732357 | AK53: 298.6058624 | AL53: 5.597120551 | AM53: 21.33088438 | AN53: 12.79340555 | AO53: 6.802374392 | AP53: 1.170246704 | AQ53: 2.460034037 | AR53: 11.30132131 | AV53: =$I$15-SQRT($I$18^2-(AW53-$I$16)^2) -> 12.27922478 | AW53: 0.64 | AX53: 0.6600231245 | AY53: -0.32 | AZ53: 11.94921322 | BA53: 0.8 | BB53: 7.2 | BC53: 0.4514393376 | BD53: 0.4362611305 | BE53: 0.8998201076 | BF53: 0.7335056407 | BG53: 4.752166497 | BH53: 85.53899694 | BI53: 1243.718777 | BJ53: 11.00258461 | BK53: 37.3173395 | BL53: 76.96970943 | BM53: 40.92552046 | BN53: 1.054590096 | BO53: 9.387862548 | BP53: 43.12755412
X54: 14.38793118 | Y54: 0.96 | Z54: 0.1805915624 | AA54: -0.32 | AB54: 14.2976354 | AC54: 1.12 | AD54: 6.88 | AE54: 1.057003673 | AF54: 0.8708867481 | AG54: 0.4914837453 | AH54: 0.3674415769 | AI54: 1.242469949 | AJ54: 22.36445909 | AK54: 272.6532747 | AL54: 5.511623653 | AM54: 19.47691105 | AN54: 10.99176811 | AO54: 5.844426776 | AP54: 1.157560638 | AQ54: 2.340156833 | AR54: 10.27280424 | AV54: 11.61920165 | AW54: 0.96 | AX54: 0.5382955967 | AY54: -0.32 | AZ54: 11.35005386 | BA54: 1.12 | BB54: 6.88 | BC54: 0.5363426011 | BD54: 0.5109955772 | BE54: 0.859583341 | BF54: 0.6262285121 | BG54: 3.703473705 | BH54: 66.66252669 | BI54: 1009.200401 | BJ54: 9.393427682 | BK54: 34.0642563 | BL54: 57.30199741 | BM54: 30.46801248 | BN54: 1.040866463 | BO54: 7.757415805 | BP54: 34.05345013
X55: 14.20733962 | Y55: 1.28 | Z55: 0.1697530679 | AA55: -0.32 | AB55: 14.12246309 | AC55: 1.44 | AD55: 6.56 | AE55: 1.083064383 | AF55: 0.8833979942 | AG55: 0.468623499 | AH55: 0.3622376348 | AI55: 1.113580125 | AJ55: 20.04444226 | AK55: 247.880335 | AL55: 5.433564522 | AM55: 17.70722009 | AN55: 9.393296667 | AO55: 4.994504432 | AP55: 1.144269318 | AQ55: 2.225259366 | AR55: 9.314082645 | AV55: 11.08090606 | AW55: 1.28 | AX55: 0.4575542696 | AY55: -0.32 | AZ55: 10.85212892 | BA55: 1.44 | BB55: 6.56 | BC55: 0.6103034174 | BD55: 0.5731161292 | BE55: 0.8194741622 | BF55: 0.5583510631 | BG55: 3.001556009 | BH55: 54.02800816 | BI55: 844.8289981 | BJ55: 8.375265946 | BK55: 30.9643229 | BL55: 44.27455672 | BM55: 23.54119939 | BN55: 1.022795454 | BO55: 6.710348599 | BP55: 28.0869468
X56: 14.03758655 | Y56: 1.6 | Z56: 0.1593522708 | AA56: -0.32 | AB56: 13.95791042 | AC56: 1.76 | AD56: 6.24 | AE56: 1.108769352 | AF56: 0.8951507856 | AG56: 0.4457634699 | AH56: 0.3574816725 | AI56: 0.9943581696 | AJ56: 17.89844705 | AK56: 224.2870434 | AL56: 5.362225088 | AM56: 16.02180894 | AN56: 7.978473864 | AO56: 4.242229804 | AP56: 1.130398131 | AQ56: 2.114550614 | AR56: 8.418956873 | AV56: 10.62335179 | AW56: 1.6 | AX56: 0.3981096921 | AY56: -0.32 | AZ56: 10.42429694 | BA56: 1.76 | BB56: 6.24 | BC56: 0.6770528536 | BD56: 0.626498676 | BE56: 0.7794224843 | BF56: 0.5107752215 | BG56: 2.484204478 | BH56: 44.71568061 | BI56: 718.344131 | BJ56: 7.661628323 | BK56: 28.0143147 | BL56: 34.85240687 | BM56: 18.53135345 | BN56: 1.001682012 | BO56: 5.961617867 | BP56: 23.73582518
X57: 13.87823428 | Y57: 1.92 | Z57: 0.149341145 | AA57: -0.32 | AB57: 13.80356371 | AC57: 2.08 | AD57: 5.92 | AE57: 1.134149121 | AF57: 0.9061746628 | AG57: 0.4229036303 | AH57: 0.3531328045 | AI57: 0.8840995783 | AJ57: 15.91379241 | AK57: 201.8733997 | AL57: 5.296992067 | AM57: 14.42067547 | AN57: 6.730000582 | AO57: 3.578404784 | AP57: 1.11596964 | AQ57: 2.007328063 | AR57: 7.58220763 | AV57: 10.2252421 | AW57: 1.92 | AX57: 0.3514346903 | AY57: -0.32 | AZ57: 10.04952475 | BA57: 2.08 | BB57: 5.92 | BC57: 0.7386151267 | BD57: 0.6732645799 | BE57: 0.7394016536 | BF57: 0.4752960568 | BG57: 2.080493367 | BH57: 37.4488806 | BI57: 615.6399457 | BJ57: 7.129440851 | BK57: 25.21300487 | BL57: 27.68976424 | BM57: 14.72290881 | BN57: 0.978252067 | BO57: 5.38871374 | BP57: 20.35459335
X58: 13.72889314 | Y58: 2.24 | Z58: 0.1396777211 | AA58: -0.32 | AB58: 13.65905428 | AC58: 2.4 | AD58: 5.6 | AE58: 1.159231519 | AF58: 0.9164959534 | AG58: 0.4000439567 | AH58: 0.3491559333 | AI58: 0.782195238 | AJ58: 14.07951428 | AK58: 180.6394041 | AL58: 5.237339 | AM58: 12.90381787 | AN58: 5.632424603 | AO58: 2.994813285 | AP58: 1.101003958 | AQ58: 1.902959386 | AR58: 6.799440167 | AV58: 9.873807405 | AW58: 2.24 | AX58: 0.3131355983 | AY58: -0.32 | AZ58: 9.717239606 | BA58: 2.4 | BB58: 5.6 | BC58: 0.7962396526 | BD58: 0.714731166 | BE58: 0.6993992853 | BF58: 0.4477207868 | BG58: 1.753559351 | BH58: 31.56406831 | BI58: 529.3849907 | BJ58: 6.715811802 | BK58: 22.55982335 | BL58: 22.07588682 | BM58: 11.73795723 | BN58: 0.952960574 | BO58: 4.928885941 | BP58: 17.61134016
X59: 13.58921542 | Y59: 2.56 | Z59: 0.1303250653 | AA59: -0.32 | AB59: 13.52405288 | AC59: 2.72 | AD59: 5.28 | AE59: 1.184042039 | AF59: 0.9261381682 | AG59: 0.377184429 | AH59: 0.3455207992 | AI59: 0.688116345 | AJ59: 12.38609421 | AK59: 160.5850564 | AL59: 5.182811988 | AM59: 11.4712346 | AN59: 4.671841873 | AO59: 2.484062387 | AP59: 1.085519048 | AQ59: 1.800867506 | AR59: 6.066962276 | AV59: 9.560671807 | AW59: 2.56 | AX59: 0.280679924 | AY59: -0.32 | AZ59: 9.420331845 | BA59: 2.72 | BB59: 5.28 | BC59: 0.8507641883 | BD59: 0.7517845371 | BE59: 0.6594088335 | BF59: 0.4256538731 | BG59: 1.481989999 | BH59: 26.67581997 | BI59: 455.3207189 | BJ59: 6.384808097 | BK59: 20.05446897 | BL59: 17.59027133 | BM59: 9.352913172 | BN59: 0.9261153451 | BO59: 4.546084763 | BP59: 15.31535478
X60: 13.45889035 | Y60: 2.88 | Z60: 0.1212504565 | AA60: -0.32 | AB60: 13.39826512 | AC60: 3.04 | AD60: 4.96 | AE60: 1.208604157 | AF60: 0.9351223307 | AG60: 0.3543250297 | AH60: 0.3422012174 | AI60: 0.6014022644 | AJ60: 10.82524076 | AK60: 141.7103567 | AL60: 5.133018261 | AM60: 10.12292437 | AN60: 3.835653753 | AO60: 2.039453277 | AP60: 1.06953097 | AQ60: 1.70051817 | AR60: 5.381688582 | AV60: 9.279991883 | AW60: 2.88 | AX60: 0.2524874972 | AY60: -0.32 | AZ60: 9.153748135 | BA60: 3.04 | BB60: 4.96 | BC60: 0.9027843446 | BD60: 0.7850546474 | BE60: 0.6194265095 | BF60: 0.4076149362 | BG60: 1.252337986 | BH60: 22.54208375 | BI60: 390.7726993 | BJ60: 6.114224043 | BK60: 17.69676761 | BL60: 13.96316425 | BM60: 7.424346128 | BN60: 0.8979360771 | BO60: 4.217797406 | BP60: 13.34820912
X61: 13.3376399 | Y61: 3.2 | Z61: 0.1124247158 | AA61: -0.32 | AB61: 13.28142754 | AC61: 3.36 | AD61: 4.64 | AE61: 1.232939604 | AF61: 0.9434672548 | AG61: 0.3314657436 | AH61: 0.3391744635 | AI61: 0.5216506811 | AJ61: 9.389712261 | AK61: 124.0153051 | AL61: 5.087616953 | AM61: 8.85888605 | AN61: 3.112367957 | AO61: 1.654875397 | AP61: 1.0530541 | AQ61: 1.601409402 | AR61: 4.741065602 | AV61: 9.027504386 | AW61: 3.2 | AX61: 0.2275119161 | AY61: -0.32 | AZ61: 8.913748428 | BA61: 3.36 | BB61: 4.64 | BC61: 0.9527426794 | BD61: 0.8150078136 | BE61: 0.5794499666 | BF61: 0.3926342725 | BG61: 1.055655291 | BH61: 19.00179523 | BI61: 333.9613315 | BJ61: 5.889514088 | BK61: 15.48661159 | BL61: 11.01058961 | BM61: 5.854434344 | BN61: 0.8685858561 | BO61: 3.929005656 | BP61: 11.63204958
X62: 13.22521518 | Y62: 3.52 | Z62: 0.1038216565 | AA62: -0.32 | AB62: 13.17330435 | AC62: 3.68 | AD62: 4.32 | AE62: 1.25706859 | AF62: 0.9511897775 | AG62: 0.3086065574 | AH62: 0.3364207728 | AI62: 0.4485095562 | AJ62: 8.073172011 | AK62: 107.4999014 | AL62: 5.046311592 | AM62: 7.679118689 | AN62: 2.491433822 | AO62: 1.324718861 | AP62: 1.0361013 | AQ62: 1.503062343 | AR62: 4.143013527 | AV62: 8.79999247 | AW62: 3.52 | AX62: 0.2050271667 | AY62: -0.32 | AZ62: 8.697478887 | BA62: 3.68 | BB62: 4.32 | BC62: 1.000979683 | BD62: 0.8419999059 | BE62: 0.5394776719 | BF62: 0.3800475484 | BG62: 0.8857173599 | BH62: 15.94291248 | BI62: 283.648664 | BJ62: 5.700713226 | BK62: 13.42393081 | BL62: 8.600845308 | BM62: 4.573150571 | BN62: 0.8381893992 | BO62: 3.669108083 | BP62: 10.11346235
X63: 13.12139352 | Y63: 3.84 | Z63: 0.09541762919 | AA63: -0.32 | AB63: 13.07368471 | AC63: 4 | AD63: 4 | AE63: 1.281010009 | AF63: 0.9583049564 | AG63: 0.2857474593 | AH63: 0.3339229312 | AI63: 0.3816705168 | AJ63: 6.870069302 | AK63: 92.16414575 | AL63: 5.008843968 | AM63: 6.583621463 | AN63: 1.963104848 | AO63: 1.043801363 | AP63: 1.018684077 | AQ63: 1.405013066 | AR63: 3.585881755 | AV63: 8.594965303 | AW63: 3.84 | AX63: 0.1845100965 | AY63: -0.32 | AZ63: 8.502710255 | BA63: 4 | BB63: 4 | BC63: 1.0477649 | BD63: 0.8663089389 | BE63: 0.4995085809 | BF63: 0.3693832369 | BG63: 0.7380403858 | BH63: 13.28472694 | BI63: 238.942948 | BJ63: 5.540748553 | BK63: 11.5086777 | BL63: 6.635835104 | BM63: 3.528336112 | BN63: 0.8068442916 | BO63: 3.430217547 | BP63: 8.754619308
X64: 13.02597589 | Y64: 4.16 | Z64: 0.08719114095 | AA64: -0.32 | AB64: 12.98238032 | AC64: 4.32 | AD64: 3.68 | AE64: 1.304781599 | AF64: 0.9648262375 | AG64: 0.262888439 | AH64: 0.331665939 | AI64: 0.3208633987 | AJ64: 5.775541177 | AK64: 78.00803809 | AL64: 4.974989084 | AM64: 5.572393663 | AN64: 1.518323004 | AO64: 0.8073066616 | AP64: 1.000812702 | AQ64: 1.306805071 | AR64: 3.068416009 | AV64: 8.410455207 | AW64: 4.16 | AX64: 0.1655716061 | AY64: -0.32 | AZ64: 8.327669404 | BA64: 4.32 | BB64: 3.68 | BC64: 1.093316922 | BD64: 0.8881560624 | BE64: 0.4595419554 | BF64: 0.3602970396 | BG64: 0.6093035105 | BH64: 10.96746319 | BI64: 199.1837248 | BJ64: 5.404455594 | BK64: 9.74081892 | BL64: 5.04000948 | BM64: 2.679820576 | BN64: 0.7746282513 | BO64: 3.206149643 | BP64: 7.52813186
X65: 12.93878475 | Y65: 4.48 | Z65: 0.07912253588 | AA65: -0.32 | AB65: 12.89922349 | AC65: 4.64 | AD65: 3.36 | AE65: 1.328400101 | AF65: 0.9707655976 | AG65: 0.240029487 | AH65: 0.3296367329 | AI65: 0.2658517206 | AJ65: 4.78533097 | AK65: 65.03157843 | AL65: 4.944550994 | AM65: 4.645434679 | AN65: 1.148620538 | AO65: 0.6107323733 | AP65: 0.9824963274 | AQ65: 1.207982163 | AR65: 2.589735493 | AV65: 8.244883601 | AW65: 4.48 | AX65: 0.1479143101 | AY65: -0.32 | AZ65: 8.170926446 | BA65: 4.64 | BB65: 3.36 | BC65: 1.137816775 | BD65: 0.9077196287 | BE65: 0.4195772583 | BF65: 0.3525317619 | BG65: 0.496992082 | BH65: 8.945857476 | BI65: 163.8708752 | BJ65: 5.287976428 | BK65: 8.120330426 | BL65: 3.753478353 | BM65: 1.995759842 | BN65: 0.7416040143 | BO65: 2.991778104 | BP65: 6.413930754
X66: 12.85966222 | Y66: 4.8 | Z66: 0.07119372359 | AA66: -0.32 | AB66: 12.82406536 | AC66: 4.96 | AD66: 3.04 | AE66: 1.351881379 | AF66: 0.9761336654 | AG66: 0.2171705949 | AH66: 0.3278239562 | AI66: 0.2164289197 | AJ66: 3.895720555 | AK66: 53.23476677 | AL66: 4.917359343 | AM66: 3.802743985 | AN66: 0.8460359504 | AO66: 0.4498452943 | AP66: 0.9637430736 | AQ66: 1.108081483 | AR66: 2.149319065 | AV66: 8.096969291 | AW66: 4.8 | AX66: 0.1313053815 | AY66: -0.32 | AZ66: 8.0313166 | BA66: 4.96 | BB66: 3.04 | BC66: 1.181417203 | BD66: 0.9251449315 | BE66: 0.3796140879 | BF66: 0.3458917507 | BG66: 0.3991683596 | BH66: 7.185030474 | BI66: 132.6190177 | BJ66: 5.18837626 | BK66: 6.647194525 | BL66: 2.72753879 | BM66: 1.4502581 | BN66: 0.7078227238 | BO66: 2.782590408 | BP66: 5.397323851
X67: 12.78846849 | Y67: 5.12 | Z67: 0.06338794693 | AA67: -0.32 | AB67: 12.75677452 | AC67: 5.28 | AD67: 2.72 | AE67: 1.375240543 | AF67: 0.9809398258 | AG67: 0.1943117551 | AH67: 0.3262177675 | AI67: 0.1724152156 | AJ67: 3.103473882 | AK67: 42.61760311 | AL67: 4.893266512 | AM67: 3.044321129 | AN67: 0.6030414567 | AO67: 0.3206428302 | AP67: 0.9445601106 | AQ67: 1.006626464 | AR67: 1.74699981 | AV67: 7.965663909 | AW67: 5.12 | AX67: 0.1155585065 | AY67: -0.32 | AZ67: 7.907884656 | BA67: 5.28 | BB67: 2.72 | BC67: 1.224249304 | BD67: 0.9405511289 | BE67: 0.3396521367 | BF67: 0.3402260549 | BG67: 0.3143191377 | BH67: 5.657744479 | BI67: 105.1272027 | BJ67: 5.103390823 | BK67: 5.321397956 | BL67: 1.921665001 | BM67: 1.021767406 | BN67: 0.6733263454 | BO67: 2.574349882 | BP67: 4.467783151
X68: 12.72508055 | Y68: 5.44 | Z68: 0.05568958158 | AA68: -0.32 | AB68: 12.69723576 | AC68: 5.6 | AD68: 2.4 | AE68: 1.398492047 | AF68: 0.9851923073 | AG68: 0.1714529605 | AH68: 0.324809682 | AI68: 0.1336549958 | AJ68: 2.405789924 | AK68: 33.18008745 | AL68: 4.872145229 | AM68: 2.370165726 | AN68: 0.4124798048 | AO68: 0.2193194026 | AP68: 0.9249537247 | AQ68: 0.9031194765 | AR68: 1.382967773 | AV68: 7.850105403 | AW68: 5.44 | AX68: 0.1005215162 | AY68: -0.32 | AZ68: 7.799844644 | BA68: 5.6 | BB68: 2.4 | BC68: 1.266427405 | BD68: 0.954036271 | BE68: 0.2996911638 | BF68: 0.3354170169 | BG68: 0.2412516388 | BH68: 4.342529498 | BI68: 81.15820842 | BJ68: 5.031255253 | BK68: 4.142930649 | BL68: 1.301417719 | BM68: 0.6919760758 | BN68: 0.6381494231 | BO68: 2.362805149 | BP68: 3.618218254
B69: setor | X69: 12.66939096 | Y69: 5.76 | Z69: 0.04808396132 | AA69: -0.32 | AB69: 12.64534898 | AC69: 5.92 | AD69: 2.08 | AE69: 1.421649784 | AF69: 0.9888982568 | AG69: 0.1485942048 | AH69: 0.3235924402 | AI69: 0.1000146395 | AJ69: 1.800263512 | AK69: 24.92221979 | AL69: 4.853886603 | AM69: 1.780277449 | AN69: 0.2675087249 | AO69: 0.1422369121 | AP69: 0.9049293758 | AQ69: 0.7970339333 | AR69: 1.057780987 | AV69: 7.749583886 | AW69: 5.76 | AX69: 0.08606766767 | AY69: -0.32 | AZ69: 7.706550053 | BA69: 5.92 | BB69: 2.08 | BC69: 1.308052718 | BD69: 0.9656810135 | BE69: 0.2597309767 | BF69: 0.3313723637 | BG69: 0.1790207487 | BH69: 3.222373477 | BI69: 60.52406855 | BJ69: 4.970585455 | BK69: 3.111784885 | BL69: 0.8369502106 | BM69: 0.4450143208 | BN69: 0.6023203779 | BO69: 2.143402519 | BP69: 2.844609668
B70: ângulo do raio superior com a horizontal | F70: =ATAN(($Y$77-$Y$76)/($X$77-$X$76)) -> 1.285265265e-05 | G70: =F70*180/PI() -> 0.0007364027522 | X70: 12.621307 | Y70: 6.08 | Z70: 0.04055722432 | AA70: -0.32 | AB70: 12.60102839 | AC70: 6.24 | AD70: 1.76 | AE70: 1.444727165 | AF70: 0.9920638027 | AG70: 0.1257354818 | AH70: 0.322559899 | AI70: 0.07138071481 | AJ70: 1.284852867 | AK70: 17.84400013 | AL70: 4.838398485 | AM70: 1.274656021 | AN70: 0.1615515943 | AO70: 0.08589850638 | AP70: 0.8844917449 | AQ70: 0.6878055882 | AR70: 0.7723852612 | AV70: 7.663516219 | AW70: 6.08 | AX70: 0.07208933748 | AY70: -0.32 | AZ70: 7.62747155 | BA70: 6.24 | BB70: 1.76 | BC70: 1.349216173 | BD70: 0.9755513948 | BE70: 0.2197714179 | BF70: 0.3280196222 | BG70: 0.126877234 | BH70: 2.283790211 | BI70: 43.07577404 | BJ70: 4.920294334 | BK70: 2.227954726 | BL70: 0.5019118129 | BM70: 0.2668712448 | BN70: 0.5658624806 | BO70: 1.91095911 | BP70: 2.145950362
B71: ângulo do raio inferior com a horizontal | F71: =ATAN(($Y$50-$Y$51)/($X$50-$X$51)) -> 0.6082612405 | G71: =F71*180/PI() -> 34.85080192 | X71: 12.58074978 | Y71: 6.4 | Z71: 0.03309617631 | AA71: -0.32 | AB71: 12.56420169 | AC71: 6.56 | AD71: 1.44 | AE71: 1.467737203 | AF71: 0.9946941072 | AG71: 0.1028767861 | AH71: 0.3217069426 | AI71: 0.04765849389 | AJ71: 0.85785289 | AK71: 11.94542847 | AL71: 4.825604138 | AM71: 0.8533012145 | AN71: 0.08825314825 | AO71: 0.0469250313 | AP71: 0.8636447746 | AQ71: 0.5748227272 | AR71: 0.5281436141 | AV71: 7.591426881 | AW71: 6.4 | AX71: 0.05849334109 | AY71: -0.32 | AZ71: 7.562180211 | BA71: 6.56 | BB71: 1.44 | BC71: 1.390000632 | BD71: 0.9837009284 | BE71: 0.1798123561 | BF71: 0.3253021226 | BG71: 0.08423041117 | BH71: 1.516147401 | BI71: 28.69584863 | BJ71: 4.879531839 | BK71: 1.491435606 | BL71: 0.2726220363 | BM71: 0.144955708 | BN71: 0.5287945845 | BO71: 1.659245654 | BP71: 1.524504782
B72: ângulo central | F72: =F71-F70 -> 0.6082483879 | G72: =F72*180/PI() -> 34.85006552 | X72: 12.5476536 | Y72: 6.72 | Z72: 0.02568816732 | AA72: -0.32 | AB72: 12.53480952 | AC72: 6.88 | AD72: 1.12 | AE72: 1.490692576 | AF72: 0.9967934098 | AG72: 0.08001811217 | AH72: 0.3210294098 | AI72: 0.0287707474 | AJ72: 0.5178734532 | AK72: 7.22650481 | AL72: 4.815441147 | AM72: 0.5162128453 | AN72: 0.04143925607 | AO72: 0.02203364329 | AP72: 0.842391702 | AQ72: 0.4574148925 | AR72: 0.326876676 | AV72: 7.53293354 | AW72: 6.72 | AX72: 0.0451973688 | AY72: -0.32 | AZ72: 7.510334856 | BA72: 6.88 | BB72: 1.12 | BC72: 1.430482687 | BD72: 0.9901721812 | BE72: 0.1398536789 | BF72: 0.3231761163 | BG72: 0.05062105306 | BH72: 0.911178955 | BI72: 17.29296027 | BJ72: 4.847641744 | BK72: 0.9022240534 | BL72: 0.127431729 | BM72: 0.06775665221 | BN72: 0.4911316785 | BO72: 1.380404811 | BP72: 0.9864614024
B73: comprimento do arco | F73: =F72*B18 -> 8.51547743 | X73: 12.52196544 | Y73: 7.04 | Z73: 0.01832097927 | AA73: -0.32 | AB73: 12.51280495 | AC73: 7.2 | AD73: 0.8 | AE73: 1.513605701 | AF73: 0.9983650618 | AG73: 0.05715945502 | AH73: 0.320524037 | AI73: 0.01465678342 | AJ73: 0.2638221015 | AK73: 3.68722915 | AL73: 4.807860555 | AM73: 0.2633907687 | AN73: 0.01507992755 | AO73: 0.008018139705 | AP73: 0.8207350854 | AQ73: 0.3348396992 | AR73: 0.1709159291 | AV73: 7.487736171 | AW73: 7.04 | AX73: 0.03212719387 | AY73: -0.32 | AZ73: 7.471672574 | BA73: 7.2 | BB73: 0.8 | BC73: 1.470734144 | BD73: 0.9949979555 | BE73: 0.09989528817 | BF73: 0.321608701 | BG73: 0.02570175509 | BH73: 0.4626315917 | BI73: 8.798016456 | BJ73: 4.824130516 | BK73: 0.4603174879 | BL73: 0.04621471617 | BM73: 0.02457280047 | BN73: 0.4528853014 | BO73: 1.06408379 | BP73: 0.5431520518
B74: comprimento da corda | F74: =SQRT(($X$51-$X$76)^2+($Y$51-$Y$76)^2) -> 8.384814906 | X74: 12.50364446 | Y74: 7.36 | Z74: 0.01098272184 | AA74: -0.32 | AB74: 12.4981531 | AC74: 7.52 | AD74: 0.48 | AE74: 1.536488787 | AF74: 0.9994115541 | AG74: 0.0343008097 | AH74: 0.3201884136 | AI74: 0.005271706485 | AJ74: 0.09489071672 | AK74: 1.32760149 | AL74: 4.802826203 | AM74: 0.09483487867 | AN74: 0.003254828417 | AO74: 0.001730622968 | AP74: 0.7986768246 | AQ74: 0.2062671941 | AR74: 0.06317234644 | AV74: 7.455608978 | AW74: 7.36 | AX74: 0.01921441506 | AY74: -0.32 | AZ74: 7.44600177 | BA74: 7.52 | BB74: 0.48 | BC74: 1.510823286 | BD74: 0.9982021562 | BE74: 0.05993709545 | BF74: 0.3205763462 | BG74: 0.00922291923 | BH74: 0.1660125461 | BI74: 3.161376622 | BJ74: 4.808645193 | BK74: 0.1657140815 | BL74: 0.009950309824 | BM74: 0.005290673582 | BN74: 0.4140638456 | BO74: 0.6960671138 | BP74: 0.2131807389
B75: área do arco | F75: =0.5*$F$72*$B$18^2 -> 59.60834201 | X75: 12.49266173 | Y75: 7.68 | Z75: 0.003661734574 | AA75: -0.32 | AB75: 12.49083087 | AC75: 7.84 | AD75: 0.16 | AE75: 1.559353906 | AF75: 0.9999345362 | AG75: 0.01144217145 | AH75: 0.3200209498 | AI75: 0.0005858775319 | AJ75: 0.01054579557 | AK75: 0.1476218301 | AL75: 4.800314247 | AM75: 0.01054510521 | AN75: 0.000120666801 | AO75: 6.415967618e-05 | AP75: 0.7762181767 | AQ75: 0.07076105695 | AR75: 0.007223869704 | AV75: 7.436394562 | AW75: 7.68 | AX75: 0.006394562449 | AY75: -0.32 | AZ75: 7.433197281 | BA75: 7.84 | BB75: 0.16 | BC75: 1.550815978 | BD75: 0.9998003995 | BE75: 0.01997901903 | BF75: 0.3200638849 | BG75: 0.001023129992 | BH75: 0.01841633985 | BI75: 0.350938139 | BJ75: 4.800958274 | BK75: 0.01841266394 | BL75: 0.0003679404044 | BM75: 0.0001956373833 | BN75: 0.3746727692 | BO75: 0.2560058926 | BP75: 0.02613518355
B76: CG do arco (a partir do centro, na bissetriz) | F76: =2*$B$18*SIN(0.5*$F$72)/(3*0.5*$F$72) -> 9.190121528 | X76: =$X$77-SQRT($B$18^2-($Y$76-$Y$77)^2) -> 12.489 | Y76: =+$D$5 -> 8 | AI76: TOTAIS | AJ76: =SUM(AJ51:AJ75) -> 245.6311411 | AK76: 3070.874844 | AL76: 127.7289784 | AM76: 219.3662147 | AN76: 106.6181545 | AO76: 56.68987832 | AQ76: =SUM(AQ51:AQ75) -> 35.02698935 | AR76: =SUM(AR51:AR75) -> 117.4770758 | AV76: 7.43 | AW76: =+$D$5 -> 8 | BG76: TOTAIS | BH76: =SUM(BH51:BH75) -> 841.9410358 | BI76: 12371.01394 | BJ76: 182.0431922 | BK76: 383.8772318 | BL76: 705.3758403 | BM76: 375.0549871 | BO76: =SUM(BO51:BO75) -> 121.7899149 | BP76: =SUM(BP51:BP75) -> 453.5526276
B77: ângulo da bissetriz com a horizontal | F77: =$F$72/2+F70 -> 0.3041370466 | G77: =F77*180/PI() -> 17.42576916 | X77: =+$B$15 -> 26.489 | Y77: =+$B$16 -> 8.000179937 | AN77: FFELLENIUS= | AO77: =(AL76+AO76)/AM76 -> 0.8406894241 | AQ77: FBISHOP SIMPLIFICADO= | AR77: =(AR76+AQ76)/AM76 -> 0.6952030663 | AV77: =+$B$15 -> 26.489 | AW77: =+$B$16 -> 8.000179937 | BL77: FFELLENIUS= | BM77: =(BJ76+BM76)/BK76 -> 1.451240483 | BO77: FBISHOP SIMPLIFICADO= | BP77: =(BP76+BO76)/BK76 -> 1.49876704
B78: xCG arco | C78: =$B$15-$F$76*COS($F$77) -> 17.72065233 | D78: yCG arco | E78: =$B$16-$F$76*SIN($F$77) -> 5.248014813
B79: momento do arco | F79: =F75*($B$15-C78) -> 522.6666667
B81: triângulo superior
B82: x1sup = | C82: =+$B$15 -> 26.489 | D82: y1sup = | E82: =+$B$16 -> 8.000179937 | G82: =+C82 -> 26.489 | H82: =+E82 -> 8.000179937 | I82: 1
B83: x2sup = | C83: =+$X$76 -> 12.489 | D83: y2sup = | E83: =+$Y$76 -> 8 | G83: =+C83 -> 12.489 | H83: =+E83 -> 8 | I83: 1 | J83: =MDETERM(G82:I84) -> 0.0004518221511
B84: x3sup = | C84: =+$D$4 -> 15 | D84: y3sup = | E84: =+$D$5 -> 8 | G84: =+C84 -> 15 | H84: =+E84 -> 8 | I84: 1
B85: área sup | F85: =J83/2 -> 0.0002259110756
B86: xCGsup | C86: =AVERAGE(C82:C84) -> 17.99266667 | D86: yCGsup | E86: =AVERAGE(E82:E84) -> 8.000059979
B87: momento sup | F87: =F85*($B$15-C86) -> 0.001919415802
B89: triângulo inferior
B90: x1inf = | C90: =+$B$15 -> 26.489 | D90: y1inf = | E90: =+$B$16 -> 8.000179937 | G90: =+C90 -> 26.489 | H90: =+E90 -> 8.000179937 | I90: 1
B91: x2inf = | C91: =+$B$4 -> 15 | D91: y2inf = | E91: =+$D$5 -> 8 | G91: =+C91 -> 15 | H91: =+E91 -> 8 | I91: 1 | J91: =MDETERM(G90:I92) -> 91.91199999
B92: x3inf = | C92: =+$X$51 -> 15 | D92: y3inf = | E92: =+$Y$51 -> 0 | G92: =+C92 -> 15 | H92: =+E92 -> 0 | I92: 1
B93: área inf | F93: =J91/2 -> 45.956
B94: xCGinf | C94: =AVERAGE(C90:C92) -> 18.82966667 | D94: yCGinf | E94: =AVERAGE(E90:E92) -> 5.333393312
B95: momento inf | F95: =F93*($B$15-C94) -> 351.9923226
B97: área da cunha | F97: =F75-F85-F93 -> 13.6521161
B98: momento da cunha (1) | F98: =F79-F87-F95 -> 170.6724247
B99: xCGcunha | C99: =$B$15-F98/F97 -> 13.98746373 | E99: <= comparar => | G99: =$B$15-H99 -> 13.98702313 | H99: =AK76/AJ76 -> 12.50197687
B100: peso da cunha | F100: =F97*$B$8 -> 245.7380899
B101: momento da cunha (com g) | F101: =F98*$B$8 -> 3072.103644
B102: coesão total | F102: =$B$9*F73 -> 127.7321615

Sheet Linha 1
A1: Linha 1
A2: Cabeça | H2: r
A3: X1 = | B3: =+Resultados!$B$4 -> 15 | H3: rx = | I3: =+B15-Resultados!$B$15 -> -11.489
A4: Y1 = | B4: =+Resultados!$S$31 -> 0 | H4: ry = | I4: =+B16-Resultados!$B$16 -> -8.000179937
A5: Carga/m | B5: =+MIN(B21:B22) -> 0 | C5: kN/m
A6: LG = | B6: =+Resultados!$V$31 -> 0 | C6: m
A7: Inclinação | B7: =+Resultados!$P$31 -> 0 | C7: graus
B8: =(B7+180)/180*PI() -> 3.141592654 | C8: rd
B9: =TAN(B8) -> -1.225148455e-16 | C9: tangente
B10: =COS(B8) -> -1 | C10: cosseno | D10: Th = Tx = | E10: =B5*B10 -> 0 | H10: i | I10: =+I3 -> -11.489 | J10: =+E10 -> 0
B11: =SIN(B8) -> 1.225148455e-16 | C11: seno | D11: Tv = Ty = | E11: =B5*B11 -> 0 | H11: j | I11: =+I4 -> -8.000179937 | J11: =+E11 -> 0
H12: k | I12: 0 | J12: 0 | K12: DMs1 = | L12: =+J11*I10-(I11*J10) -> 0
A14: Grampo x círculo | H14: r
A15: =+"Xc"&RIGHT($A$1,1)&" =" -> Xc1 = | B15: =+I32 -> 15 | H15: rx = | I15: =B15-Resultados!$B$15 -> -11.489 | J15: =+I15/Resultados!$B$18 -> -0.8206428571 | K15: seno
A16: =+"Yc"&RIGHT($A$1,1)&" =" -> Yc1 = | B16: =+I33 -> 0 | H16: ry = | I16: =B16-Resultados!$B$16 -> -8.000179937 | J16: =+I16/Resultados!$B$18 -> -0.5714414241 | K16: cosseno
A18: LA = | B18: =MIN(IF(B6>0,SQRT((B3-B15)^2+(B4-B16)^2),0),B6) -> 0 | F18: N x tg f | H18: i | I18: =+I15 -> -11.489 | J18: =-F20 -> 0
A19: LB = | B19: =+$B$6-B18 -> 0 | D19: Nx = | E19: =+E10*J15 -> 0 | F19: =E19*Resultados!$B$11 -> 0 | H19: j | I19: =+I16 -> -8.000179937 | J19: =+F19 -> 0
D20: Ny = | E20: =+E11*J16 -> 0 | F20: =E20*Resultados!$B$11 -> 0 | H20: k | I20: 0 | J20: 0 | K20: DMr1 = | L20: =+J19*I18-(I19*J18) -> 0
A21: TA = | B21: =(Resultados!$P$34*'Linha 1'!B18)/(1-Resultados!$P$32) -> 0
A22: TB = | B22: =Resultados!$P$34*'Linha 1'!B19 -> 0
H23: Xc = | I23: =+Resultados!$B$15 -> 26.489
H24: Yc = | I24: =+Resultados!$B$16 -> 8.000179937
H25: R = | I25: =+Resultados!$B$18 -> 14
H26: tg a = | I26: =+B9 -> -1.225148455e-16
H27: A = | I27: =1+I26^2 -> 1
H28: B = | I28: =-2*(I23+B3*I26^2-B4*I26+I24*I26) -> -52.978
H29: C = | I29: =+I23^2+I24^2+B4^2-2*I24*B4+I26^2*B3^2+2*I26*I24*B3-2*I26*B3*B4-I25^2 -> 569.67
I30: =(-I28+SQRT(I28^2-4*I27*I29))/(2*I27) -> 37.978
I31: =(-I28-SQRT(I28^2-4*I27*I29))/(2*I27) -> 15
H32: =+A15 -> Xc1 = | I32: =MIN(I31,I30) -> 15
H33: =+A16 -> Yc1 = | I33: =B4-I26*(B3-I32) -> 0

Sheet Linha 2
A1: Linha 2
A2: Cabeça | H2: r
A3: X2 = | B3: =+Resultados!$B$4 -> 15 | H3: rx = | I3: =+B15-Resultados!$B$15 -> -11.489
A4: Y2 = | B4: =+Resultados!$S$32 -> 0 | H4: ry = | I4: =+B16-Resultados!$B$16 -> -8.000179937
A5: Carga/m | B5: =+MIN(B21:B22) -> 0 | C5: kN/m
A6: LG = | B6: =+Resultados!$V$32 -> 0 | C6: m
A7: Inclinação | B7: =+Resultados!$P$31 -> 0 | C7: graus
B8: =(B7+180)/180*PI() -> 3.141592654 | C8: rd
B9: =TAN(B8) -> -1.225148455e-16 | C9: tangente
B10: =COS(B8) -> -1 | C10: cosseno | D10: Th = Tx = | E10: =B5*B10 -> 0 | H10: i | I10: =+I3 -> -11.489 | J10: =+E10 -> 0
B11: =SIN(B8) -> 1.225148455e-16 | C11: seno | D11: Tv = Ty = | E11: =B5*B11 -> 0 | H11: j | I11: =+I4 -> -8.000179937 | J11: =+E11 -> 0
H12: k | I12: 0 | J12: 0 | K12: DMs2 = | L12: =+J11*I10-(I11*J10) -> 0
A14: Grampo x círculo | H14: r
A15: =+"Xc"&RIGHT($A$1,1)&" =" -> Xc2 = | B15: =+I32 -> 15 | H15: rx = | I15: =B15-Resultados!$B$15 -> -11.489 | J15: =+I15/Resultados!$B$18 -> -0.8206428571 | K15: seno
A16: =+"Yc"&RIGHT($A$1,1)&" =" -> Yc2 = | B16: =+I33 -> 0 | H16: ry = | I16: =B16-Resultados!$B$16 -> -8.000179937 | J16: =+I16/Resultados!$B$18 -> -0.5714414241 | K16: cosseno
A18: LA = | B18: =MIN(IF(B6>0,SQRT((B3-B15)^2+(B4-B16)^2),0),B6) -> 0 | F18: N x tg f | H18: i | I18: =+I15 -> -11.489 | J18: =-F20 -> 0
A19: LB = | B19: =+$B$6-B18 -> 0 | D19: Nx = | E19: =+E10*J15 -> 0 | F19: =E19*Resultados!$B$11 -> 0 | H19: j | I19: =+I16 -> -8.000179937 | J19: =+F19 -> 0
D20: Ny = | E20: =+E11*J16 -> 0 | F20: =E20*Resultados!$B$11 -> 0 | H20: k | I20: 0 | J20: 0 | K20: DMr2 = | L20: =+J19*I18-(I19*J18) -> 0
A21: TA = | B21: =(Resultados!$P$34*'Linha 2'!B18)/(1-Resultados!$P$32) -> 0
A22: TB = | B22: =Resultados!$P$34*'Linha 2'!B19 -> 0
H23: Xc = | I23: =+Resultados!$B$15 -> 26.489
H24: Yc = | I24: =+Resultados!$B$16 -> 8.000179937
H25: R = | I25: =+Resultados!$B$18 -> 14
H26: tg a = | I26: =+B9 -> -1.225148455e-16
H27: A = | I27: =1+I26^2 -> 1
H28: B = | I28: =-2*(I23+B3*I26^2-B4*I26+I24*I26) -> -52.978
H29: C = | I29: =+I23^2+I24^2+B4^2-2*I24*B4+I26^2*B3^2+2*I26*I24*B3-2*I26*B3*B4-I25^2 -> 569.67
I30: =(-I28+SQRT(I28^2-4*I27*I29))/(2*I27) -> 37.978
I31: =(-I28-SQRT(I28^2-4*I27*I29))/(2*I27) -> 15
H32: =+A15 -> Xc2 = | I32: =MIN(I31,I30) -> 15
H33: =+A16 -> Yc2 = | I33: =B4-I26*(B3-I32) -> 0

Sheet Linha 3
A1: Linha 3
A2: Cabeça | H2: r
A3: X3 = | B3: =+Resultados!$B$4 -> 15 | H3: rx = | I3: =+B15-Resultados!$B$15 -> -11.489
A4: Y3 = | B4: =+Resultados!$S$33 -> 0 | H4: ry = | I4: =+B16-Resultados!$B$16 -> -8.000179937
A5: Carga/m | B5: =+MIN(B21:B22) -> 0 | C5: kN/m
A6: LG = | B6: =+Resultados!$V$33 -> 0 | C6: m
A7: Inclinação | B7: =+Resultados!$P$31 -> 0 | C7: graus
B8: =(B7+180)/180*PI() -> 3.141592654 | C8: rd
B9: =TAN(B8) -> -1.225148455e-16 | C9: tangente
B10: =COS(B8) -> -1 | C10: cosseno | D10: Th = Tx = | E10: =B5*B10 -> 0 | H10: i | I10: =+I3 -> -11.489 | J10: =+E10 -> 0
B11: =SIN(B8) -> 1.225148455e-16 | C11: seno | D11: Tv = Ty = | E11: =B5*B11 -> 0 | H11: j | I11: =+I4 -> -8.000179937 | J11: =+E11 -> 0
H12: k | I12: 0 | J12: 0 | K12: DMs3 = | L12: =+J11*I10-(I11*J10) -> 0
A14: Grampo x círculo | H14: r
A15: =+"Xc"&RIGHT($A$1,1)&" =" -> Xc3 = | B15: =+I32 -> 15 | H15: rx = | I15: =B15-Resultados!$B$15 -> -11.489 | J15: =+I15/Resultados!$B$18 -> -0.8206428571 | K15: seno
A16: =+"Yc"&RIGHT($A$1,1)&" =" -> Yc3 = | B16: =+I33 -> 0 | H16: ry = | I16: =B16-Resultados!$B$16 -> -8.000179937 | J16: =+I16/Resultados!$B$18 -> -0.5714414241 | K16: cosseno
A18: LA = | B18: =MIN(IF(B6>0,SQRT((B3-B15)^2+(B4-B16)^2),0),B6) -> 0 | F18: N x tg f | H18: i | I18: =+I15 -> -11.489 | J18: =-F20 -> 0
A19: LB = | B19: =+$B$6-B18 -> 0 | D19: Nx = | E19: =+E10*J15 -> 0 | F19: =E19*Resultados!$B$11 -> 0 | H19: j | I19: =+I16 -> -8.000179937 | J19: =+F19 -> 0
D20: Ny = | E20: =+E11*J16 -> 0 | F20: =E20*Resultados!$B$11 -> 0 | H20: k | I20: 0 | J20: 0 | K20: DMr3 = | L20: =+J19*I18-(I19*J18) -> 0
A21: TA = | B21: =(Resultados!$P$34*'Linha 3'!B18)/(1-Resultados!$P$32) -> 0
A22: TB = | B22: =Resultados!$P$34*'Linha 3'!B19 -> 0
H23: Xc = | I23: =+Resultados!$B$15 -> 26.489
H24: Yc = | I24: =+Resultados!$B$16 -> 8.000179937
H25: R = | I25: =+Resultados!$B$18 -> 14
H26: tg a = | I26: =+B9 -> -1.225148455e-16
H27: A = | I27: =1+I26^2 -> 1
H28: B = | I28: =-2*(I23+B3*I26^2-B4*I26+I24*I26) -> -52.978
H29: C = | I29: =+I23^2+I24^2+B4^2-2*I24*B4+I26^2*B3^2+2*I26*I24*B3-2*I26*B3*B4-I25^2 -> 569.67
I30: =(-I28+SQRT(I28^2-4*I27*I29))/(2*I27) -> 37.978
I31: =(-I28-SQRT(I28^2-4*I27*I29))/(2*I27) -> 15
H32: =+A15 -> Xc3 = | I32: =MIN(I31,I30) -> 15
H33: =+A16 -> Yc3 = | I33: =B4-I26*(B3-I32) -> 0

Sheet Linha 4
A1: Linha 4
A2: Cabeça | H2: r
A3: X4 = | B3: =+Resultados!$B$4 -> 15 | H3: rx = | I3: =+B15-Resultados!$B$15 -> -11.489
A4: Y4 = | B4: =+Resultados!$S$34 -> 0 | H4: ry = | I4: =+B16-Resultados!$B$16 -> -8.000179937
A5: Carga/m | B5: =+MIN(B21:B22) -> 0 | C5: kN/m
A6: LG = | B6: =+Resultados!$V$34 -> 0 | C6: m
A7: Inclinação | B7: =+Resultados!$P$31 -> 0 | C7: graus
B8: =(B7+180)/180*PI() -> 3.141592654 | C8: rd
B9: =TAN(B8) -> -1.225148455e-16 | C9: tangente
B10: =COS(B8) -> -1 | C10: cosseno | D10: Th = Tx = | E10: =B5*B10 -> 0 | H10: i | I10: =+I3 -> -11.489 | J10: =+E10 -> 0
B11: =SIN(B8) -> 1.225148455e-16 | C11: seno | D11: Tv = Ty = | E11: =B5*B11 -> 0 | H11: j | I11: =+I4 -> -8.000179937 | J11: =+E11 -> 0
H12: k | I12: 0 | J12: 0 | K12: DMs4 = | L12: =+J11*I10-(I11*J10) -> 0
A14: Grampo x círculo | H14: r
A15: =+"Xc"&RIGHT($A$1,1)&" =" -> Xc4 = | B15: =+I32 -> 15 | H15: rx = | I15: =B15-Resultados!$B$15 -> -11.489 | J15: =+I15/Resultados!$B$18 -> -0.8206428571 | K15: seno
A16: =+"Yc"&RIGHT($A$1,1)&" =" -> Yc4 = | B16: =+I33 -> 0 | H16: ry = | I16: =B16-Resultados!$B$16 -> -8.000179937 | J16: =+I16/Resultados!$B$18 -> -0.5714414241 | K16: cosseno
A18: LA = | B18: =MIN(IF(B6>0,SQRT((B3-B15)^2+(B4-B16)^2),0),B6) -> 0 | F18: N x tg f | H18: i | I18: =+I15 -> -11.489 | J18: =-F20 -> 0
A19: LB = | B19: =+$B$6-B18 -> 0 | D19: Nx = | E19: =+E10*J15 -> 0 | F19: =E19*Resultados!$B$11 -> 0 | H19: j | I19: =+I16 -> -8.000179937 | J19: =+F19 -> 0
D20: Ny = | E20: =+E11*J16 -> 0 | F20: =E20*Resultados!$B$11 -> 0 | H20: k | I20: 0 | J20: 0 | K20: DMr4 = | L20: =+J19*I18-(I19*J18) -> 0
A21: TA = | B21: =(Resultados!$P$34*'Linha 4'!B18)/(1-Resultados!$P$32) -> 0
A22: TB = | B22: =Resultados!$P$34*'Linha 4'!B19 -> 0
H23: Xc = | I23: =+Resultados!$B$15 -> 26.489
H24: Yc = | I24: =+Resultados!$B$16 -> 8.000179937
H25: R = | I25: =+Resultados!$B$18 -> 14
H26: tg a = | I26: =+B9 -> -1.225148455e-16
H27: A = | I27: =1+I26^2 -> 1
H28: B = | I28: =-2*(I23+B3*I26^2-B4*I26+I24*I26) -> -52.978
H29: C = | I29: =+I23^2+I24^2+B4^2-2*I24*B4+I26^2*B3^2+2*I26*I24*B3-2*I26*B3*B4-I25^2 -> 569.67
I30: =(-I28+SQRT(I28^2-4*I27*I29))/(2*I27) -> 37.978
I31: =(-I28-SQRT(I28^2-4*I27*I29))/(2*I27) -> 15
H32: =+A15 -> Xc4 = | I32: =MIN(I31,I30) -> 15
H33: =+A16 -> Yc4 = | I33: =B4-I26*(B3-I32) -> 0

Sheet Linha 5
A1: Linha 5
A2: Cabeça | H2: r
A3: X5 = | B3: =+Resultados!$B$4 -> 15 | H3: rx = | I3: =+B15-Resultados!$B$15 -> -11.489
A4: Y5 = | B4: =+Resultados!$S$35 -> 0 | H4: ry = | I4: =+B16-Resultados!$B$16 -> -8.000179937
A5: Carga/m | B5: =+MIN(B21:B22) -> 0 | C5: kN/m
A6: LG = | B6: =+Resultados!$V$35 -> 0 | C6: m
A7: Inclinação | B7: =+Resultados!$P$31 -> 0 | C7: graus
B8: =(B7+180)/180*PI() -> 3.141592654 | C8: rd
B9: =TAN(B8) -> -1.225148455e-16 | C9: tangente
B10: =COS(B8) -> -1 | C10: cosseno | D10: Th = Tx = | E10: =B5*B10 -> 0 | H10: i | I10: =+I3 -> -11.489 | J10: =+E10 -> 0
B11: =SIN(B8) -> 1.225148455e-16 | C11: seno | D11: Tv = Ty = | E11: =B5*B11 -> 0 | H11: j | I11: =+I4 -> -8.000179937 | J11: =+E11 -> 0
H12: k | I12: 0 | J12: 0 | K12: DMs5 = | L12: =+J11*I10-(I11*J10) -> 0
A14: Grampo x círculo | H14: r
A15: =+"Xc"&RIGHT($A$1,1)&" =" -> Xc5 = | B15: =+I32 -> 15 | H15: rx = | I15: =B15-Resultados!$B$15 -> -11.489 | J15: =+I15/Resultados!$B$18 -> -0.8206428571 | K15: seno
A16: =+"Yc"&RIGHT($A$1,1)&" =" -> Yc5 = | B16: =+I33 -> 0 | H16: ry = | I16: =B16-Resultados!$B$16 -> -8.000179937 | J16: =+I16/Resultados!$B$18 -> -0.5714414241 | K16: cosseno
A18: LA = | B18: =MIN(IF(B6>0,SQRT((B3-B15)^2+(B4-B16)^2),0),B6) -> 0 | F18: N x tg f | H18: i | I18: =+I15 -> -11.489 | J18: =-F20 -> 0
A19: LB = | B19: =+$B$6-B18 -> 0 | D19: Nx = | E19: =+E10*J15 -> 0 | F19: =E19*Resultados!$B$11 -> 0 | H19: j | I19: =+I16 -> -8.000179937 | J19: =+F19 -> 0
D20: Ny = | E20: =+E11*J16 -> 0 | F20: =E20*Resultados!$B$11 -> 0 | H20: k | I20: 0 | J20: 0 | K20: DMr5 = | L20: =+J19*I18-(I19*J18) -> 0
A21: TA = | B21: =(Resultados!$P$34*'Linha 5'!B18)/(1-Resultados!$P$32) -> 0
A22: TB = | B22: =Resultados!$P$34*'Linha 5'!B19 -> 0
H23: Xc = | I23: =+Resultados!$B$15 -> 26.489
H24: Yc = | I24: =+Resultados!$B$16 -> 8.000179937
H25: R = | I25: =+Resultados!$B$18 -> 14
H26: tg a = | I26: =+B9 -> -1.225148455e-16
H27: A = | I27: =1+I26^2 -> 1
H28: B = | I28: =-2*(I23+B3*I26^2-B4*I26+I24*I26) -> -52.978
H29: C = | I29: =+I23^2+I24^2+B4^2-2*I24*B4+I26^2*B3^2+2*I26*I24*B3-2*I26*B3*B4-I25^2 -> 569.67
I30: =(-I28+SQRT(I28^2-4*I27*I29))/(2*I27) -> 37.978
I31: =(-I28-SQRT(I28^2-4*I27*I29))/(2*I27) -> 15
H32: =+A15 -> Xc5 = | I32: =MIN(I31,I30) -> 15
H33: =+A16 -> Yc5 = | I33: =B4-I26*(B3-I32) -> 0

Sheet Linha 6
A1: Linha 6
A2: Cabeça | H2: r
A3: X6 = | B3: =+Resultados!$B$4 -> 15 | H3: rx = | I3: =+B15-Resultados!$B$15 -> -11.489
A4: Y6 = | B4: =+Resultados!$S$36 -> 0 | H4: ry = | I4: =+B16-Resultados!$B$16 -> -8.000179937
A5: Carga/m | B5: =+MIN(B21:B22) -> 0 | C5: kN/m
A6: LG = | B6: =+Resultados!$V$36 -> 0 | C6: m
A7: Inclinação | B7: =+Resultados!$P$31 -> 0 | C7: graus
B8: =(B7+180)/180*PI() -> 3.141592654 | C8: rd
B9: =TAN(B8) -> -1.225148455e-16 | C9: tangente
B10: =COS(B8) -> -1 | C10: cosseno | D10: Th = Tx = | E10: =B5*B10 -> 0 | H10: i | I10: =+I3 -> -11.489 | J10: =+E10 -> 0
B11: =SIN(B8) -> 1.225148455e-16 | C11: seno | D11: Tv = Ty = | E11: =B5*B11 -> 0 | H11: j | I11: =+I4 -> -8.000179937 | J11: =+E11 -> 0
H12: k | I12: 0 | J12: 0 | K12: DMs6 = | L12: =+J11*I10-(I11*J10) -> 0
A14: Grampo x círculo | H14: r
A15: =+"Xc"&RIGHT($A$1,1)&" =" -> Xc6 = | B15: =+I32 -> 15 | H15: rx = | I15: =B15-Resultados!$B$15 -> -11.489 | J15: =+I15/Resultados!$B$18 -> -0.8206428571 | K15: seno
A16: =+"Yc"&RIGHT($A$1,1)&" =" -> Yc6 = | B16: =+I33 -> 0 | H16: ry = | I16: =B16-Resultados!$B$16 -> -8.000179937 | J16: =+I16/Resultados!$B$18 -> -0.5714414241 | K16: cosseno
A18: LA = | B18: =MIN(IF(B6>0,SQRT((B3-B15)^2+(B4-B16)^2),0),B6) -> 0 | F18: N x tg f | H18: i | I18: =+I15 -> -11.489 | J18: =-F20 -> 0
A19: LB = | B19: =+$B$6-B18 -> 0 | D19: Nx = | E19: =+E10*J15 -> 0 | F19: =E19*Resultados!$B$11 -> 0 | H19: j | I19: =+I16 -> -8.000179937 | J19: =+F19 -> 0
D20: Ny = | E20: =+E11*J16 -> 0 | F20: =E20*Resultados!$B$11 -> 0 | H20: k | I20: 0 | J20: 0 | K20: DMr6 = | L20: =+J19*I18-(I19*J18) -> 0
A21: TA = | B21: =(Resultados!$P$34*'Linha 6'!B18)/(1-Resultados!$P$32) -> 0
A22: TB = | B22: =Resultados!$P$34*'Linha 6'!B19 -> 0
H23: Xc = | I23: =+Resultados!$B$15 -> 26.489
H24: Yc = | I24: =+Resultados!$B$16 -> 8.000179937
H25: R = | I25: =+Resultados!$B$18 -> 14
H26: tg a = | I26: =+B9 -> -1.225148455e-16
H27: A = | I27: =1+I26^2 -> 1
H28: B = | I28: =-2*(I23+B3*I26^2-B4*I26+I24*I26) -> -52.978
H29: C = | I29: =+I23^2+I24^2+B4^2-2*I24*B4+I26^2*B3^2+2*I26*I24*B3-2*I26*B3*B4-I25^2 -> 569.67
I30: =(-I28+SQRT(I28^2-4*I27*I29))/(2*I27) -> 37.978
I31: =(-I28-SQRT(I28^2-4*I27*I29))/(2*I27) -> 15
H32: =+A15 -> Xc6 = | I32: =MIN(I31,I30) -> 15
H33: =+A16 -> Yc6 = | I33: =B4-I26*(B3-I32) -> 0

Sheet Antes

Sheet Distr. Grampo

Sheet Esf. do Grampo
